[Event "Mongolian Championship Open 2022"]
[Site "Chingis Khentii"]
[Date "2022.05.21"]
[Round "9.3"]
[White "Agibileg, Uurtsaikh"]
[Black "Gundavaa, Bayarsaikhan"]
[Result "1/2-1/2"]
[ECO "D17"]
[WhiteElo "2440"]
[BlackElo "2495"]
[Annotator "TA"]
[PlyCount "142"]
[EventDate "2022.05.12"]
[EventType "tourn"]
[EventCountry "MGL"]
[SourceTitle "playchess.com"]
[Source "ChessBase"]
[SourceQuality "1"]
[TimeControl "40/5400+30:1800+30"]

{[%evp 15,142,18,24,20,39,-24,-12,-98,-106,-130,-125,-123,-125,-125,-125,-132,-131,-135,-123,-131,-119,-128,-102,-107,-102,-101,-94,-109,-64,-90,-90,-145,-143,-138,-142,-171,-170,-328,-309,-325,-148,-155,-158,-270,-257,-250,-243,-227,-116,-320,-317,-312,-310,-293,-264,-287,-253,-252,-83,-95,-89,-90,-82,-82,-82,-118,-109,-117,-83,-83,-83,-83,-83,-83,-83,-83,-83,-91,-72,-63,-54,-95,-62,-270,-245,-245,-230,-258,-283,-252,-219,-428,-381,-800,-511,-478,-415,-496,-452,-769,-835,-665,-618,-616,-598,-593,-100,-545,-406,-505,0,0,0,-508,-468,-637,0,0,0,0,0,0,0,0,0,0,0,0,0]} 1. d4 {[%emt 0:00:06] Mikhalchishin,Adrian} d5 {[%emt 0:00:06]} 2. c4 {[%emt 0:00:16]} c6 {[%emt 0:00:05]} 3. Nf3 {[%emt 0:00:20][%cal Bg1f3,Bf3e5,Be5c4,Bc4e5][%mdl 32]} Nf6 {[%emt 0:00:05]} 4. Nc3 {[%emt 0:00:13]} dxc4 {[%emt 0:00:06]} 5. a4 {[%emt 0:00:13]} Bf5 {[%emt 0:00:06]} 6. Ne5 {[%emt 0:00:13]} Nbd7 {[%emt 0:00:42]} 7. Nxc4 {[%emt 0:00:11]} Nb6 {[%emt 0:01:36]} 8. Ne5 {[%emt 0:02:58]} a5 {[%emt 0:00:07]} 9. h4 {[%emt 0:00:14] D17: Slav Defence: 5 a4 Bf5: Lines with 6 Nh4 and 6 Ne5.} Nbd7 {[%emt 0:06:52] [#]} 10. e4 $146 {[%emt 0:27:44]} ({Better is} 10. Qb3 $1 $14 Nxe5 11. dxe5) ({Predecessor:} 10. Qb3 Nxe5 11. dxe5 Nd7 12. e4 Be6 13. Qxb7 Nxe5 14. Bf4 Rb8 15. Qa6 Ra8 16. Qe2 Qb8 17. h5 Nd3+ 18. Qxd3 Qxf4 19. g3 Qd6 20. Qe3 Qb4 21. Bg2 Bc4 22. e5 {1-0 (22) Korobov,A (2687)-Solak,D (2607) Jerusalem 2015 CBM 166 [Mikhalchishin,Adrian]}) 10... Bxe4 $11 {[%emt 0:21:27]} 11. Nxe4 {[%emt 0:08:03]} (11. Qb3 $1 $11 e6 12. Qxb7 (12. Nxe4 Nxe4 13. Nd3 Qb6 $17)) 11... Nxe4 $17 {[%emt 0:00:13]} 12. Qf3 {[%emt 0:03:29][%csl Ge5][%cal Rf3f7]} Nxe5 {[%emt 0:02:45]} 13. Qxe4 {[%emt 0:02:34]} Nd7 {[%emt 0:00:22][%cal Be5d7,Bd7f6,Bf6d5,Bd5b4][%mdl 32]} 14. Bc4 {[%emt 0:02:28]} e6 {[%emt 0:02:06]} 15. O-O {[%emt 0:03:01]} Nf6 {[%emt 0:01:53]} 16. Qd3 {[%emt 0:01:13]} Be7 {[%emt 0:00:20]} 17. Rd1 {[%emt 0:02:46]} Nd5 {[%emt 0:05:52]} 18. h5 {[%emt 0:01:54]} h6 {[%emt 0:01:12]} 19. Qg3 {[%emt 0:01:12]} Bf6 {[%emt 0:01:13]} 20. Ra3 {[%emt 0:01:49]} Qd7 {[%emt 0:12:57]} 21. Rb3 {[%emt 0:02:25]} Nb4 {[%emt 0:01:39]} 22. Bf4 {[%emt 0:07:58][%cal Od4d5]} O-O-O $1 {[%emt 0:06:39]} (22... Bxd4 $6 23. Bd6 Bf6 24. Be2 $11) 23. d5 {[%emt 0:06:46]} (23. Be5 $142) 23... exd5 {[%emt 0:06:29]} 24. Be2 {[%emt 0:00:33] Threatens to win with Bg4.} Bg5 $1 {[%emt 0:02:34]} 25. Be5 {[%emt 0:00:42]} f5 {[%emt 0:00:53]} 26. Rxb4 $2 {[%emt 0:06:00]} (26. Bd3) 26... axb4 $19 {[%emt 0:00:06]} 27. a5 {[%emt 0:00:07]} Be7 {[%emt 0:07:39]} (27... Rhe8 $19 {is more deadly.} 28. a6 b6) 28. a6 $17 {[%emt 0:07:30]} Bd6 $1 {[%emt 0:00:24]} (28... Bc5 $6 29. Ra1 Qe7 30. a7 $11) 29. Bd3 {[%emt 0:01:21]} (29. a7 $2 Kc7 30. Bd3 Rhe8 31. Bxf5 Bxe5 $19) (29. Bxd6 $17 Qxd6 30. Qxg7) 29... Bxe5 {[%emt 0:05:44]} 30. Qxe5 {[%emt 0:00:11] a7 would kill now.} Rhe8 {[%emt 0:00:11][%cal Bh8e8,Be8e7,Be7a7,Ba7a1][%mdl 32]} 31. Qd4 {[%emt 0:04:01]} Kc7 {[%emt 0:03:35]} (31... Kb8 $19 32. Qxb4 Re5 33. axb7 Qxb7) 32. Qxb4 $2 {[%emt 0:02:45]} (32. axb7 $17 {is the only way for White.} Rb8 33. Qxb4) 32... b6 $19 {[%emt 0:01:28]} (32... Kb8 33. Bxf5 Qe7 34. Qb6 $15) 33. Rc1 {[%emt 0:02:17]} Qd6 {[%emt 0:01:11]} 34. Qa4 {[%emt 0:00:27]} Re7 {[%emt 0:01:25]} 35. b4 {[%emt 0:00:20]} Rde8 {[%emt 0:00:38]} 36. a7 {[%emt 0:02:32]} Ra8 $2 {[%emt 0:04:09]} (36... Re1+ 37. Rxe1 Rxe1+ 38. Bf1 $18) (36... Kb7 $1 $19 {aiming for ...Re1+.} 37. Qa6+ Ka8 38. Qxb6 Rb7) 37. Bb5 $17 {[%emt 0:00:22]} Kd8 $1 {[%emt 0:00:30][%csl LRa7,LRb5]} 38. Rxc6 {[%emt 0:00:38]} Qe5 {[%emt 0:00:18]} 39. Qa6 {[%emt 0:01:26]} Rexa7 {[%emt 0:00:35]} 40. Qxb6+ {[%emt 0:00:00]} Ke7 {[%emt 0:00:00]} 41. g3 {[%emt 0:05:54]} f4 {[%emt 0:08:56] ( -> ...Ra1+)} 42. Qc5+ {[%emt 0:02:23]} Kf7 {[%emt 0:00:48]} 43. Bd3 {[%emt 0:06:53]} Ra1+ {[%emt 0:11:46]} (43... fxg3 44. Bg6+ Kg8 45. Rc8+) 44. Kg2 {[%emt 0:00:06]} f3+ {[%emt 0:00:43]} (44... fxg3 {gets mated.} 45. Bg6+ Kg8 46. Rc8+) 45. Kxf3 {[%emt 0:00:06] White wants to mate with Bg6+.} Qxh5+ $40 {[%emt 0:00:03][%mdl 128] Black is out for blood.} 46. Kf4 {[%emt 0:00:06]} g5+ {[%emt 0:05:41]} 47. Ke5 {[%emt 0:04:40]} Re1+ {[%emt 0:01:11]} 48. Kd4 {[%emt 0:01:43] Threatening mate with Rc7+.} Qf3 $1 {[%emt 0:01:57]} 49. Qc2 {[%emt 0:04:36]} ({White must play} 49. Rc7+ $15 Kg8 50. Rc8+ (50. Qxd5+ $2 Qxd5+ 51. Kxd5 Rd8+ 52. Kc5 Rxd3 $19) 50... Rxc8 51. Qxc8+ Kg7 52. Qd7+ Qf7 53. Qxf7+ Kxf7 54. Kxd5) 49... Rae8 {[%emt 0:01:31]} 50. Kc5 {[%emt 0:02:07]} R8e6 {[%emt 0:01:17]} 51. b5 {[%emt 0:03:01]} Qf6 $1 {[%emt 0:00:08]} 52. Rc7+ {[%emt 0:00:54]} Re7 $1 {[%emt 0:00:10]} 53. b6 {[%emt 0:00:14]} (53. Rc6 R1e6 54. Bf5 Rxc6+ 55. bxc6) 53... R1e6 $19 {[%emt 0:00:54]} 54. Rxe7+ {[%emt 0:02:23]} (54. Bb5 Rxc7+ 55. bxc7 Qe7+ 56. Kd4 Re4+ 57. Kxd5 Re5+ 58. Kd4 Qd6+ 59. Kc3 Rc5+ 60. Bc4+ Kg7 61. Qd3 Qe5+ 62. Qd4) 54... Qxe7+ {[%emt 0:00:54][%mdl 4096] Endgame KQR-KQB} 55. Kb5 {[%emt 0:00:05]} Qd7+ {[%emt 0:01:20]} 56. Ka5 {[%emt 0:00:15] Hoping for Bf5.} Qd6 $1 {[%emt 0:01:18]} 57. Qb2 {[%emt 0:01:55]} (57. Qb1 $142 h5 58. Bf5) 57... Qc5+ {[%emt 0:00:04]} ({And not} 57... d4 58. Bc4 Qc5+ 59. Qb5 Qa3+ 60. Qa4 Qc5+ 61. Qb5 Qa3+ 62. Qa4 Qc5+ 63. Qb5 $11) 58. Ka6 {[%emt 0:00:05]} h5 {[%emt 0:01:46]} 59. Qb1 {[%emt 0:02:41] [#]} Rxb6+ $3 {[%emt 0:02:07][%mdl 512]} 60. Qxb6 {[%emt 0:00:06]} Qa3+ {[%emt 0:00:02]} 61. Kb7 {[%emt 0:00:10]} Qxd3 {[%emt 0:00:03] KQ-KQ} 62. Qc7+ {[%emt 0:00:32]} Ke6 $2 {[%emt 0:00:30]} (62... Kf6 $19 63. Qd8+ Kf5 64. Qd7+ Ke5) 63. Qc8+ $1 $11 {[%emt 0:00:22]} Ke5 {[%emt 0:00:57]} 64. Qe8+ $2 {[%emt 0:01:01][%mdl 8192] [#]} (64. Qh8+ $11 {and White is okay.} Ke4 65. Qh7+ Kd4 66. Qxh5) 64... Kd4 $1 $19 {[%emt 0:00:48] White must now prevent ...h4.} 65. Qxh5 {[%emt 0:00:09] [#]} Qb3+ $2 {[%emt 0:00:56]} ({Black should play} 65... Kc3 $1 $19 66. Qxg5 d4) 66. Kc6 $11 {[%emt 0:00:17] Qg4+ is the strong threat. The position is equal.} Qc2+ {[%emt 0:00:08]} 67. Kd6 {[%emt 0:00:22]} Qxf2 {[%emt 0:00:08]} 68. Qg4+ {[%emt 0:00:26]} Kd3 {[%emt 0:01:07] And now ...d4 would win.} 69. Kxd5 {[%emt 0:00:14]} Qe3 {[%emt 0:00:40]} 70. Qd1+ {[%emt 0:00:47]} Kc3 {[%emt 0:00:08]} 71. g4 {[%emt 0:00:19]} Qf4 {[%emt 0:01:47] Weighted Error Value: White=0.44/Black=0.21 (precise)} 1/2-1/2

[Event "Mongolian Championship Open 2022"]
[Site "Chingis Khentii"]
[Date "2022.05.21"]
[Round "9.4"]
[White "Amilal Munkhdalai"]
[Black "Gan-Erdene, Sugar"]
[Result "0-1"]
[ECO "B53"]
[WhiteElo "2033"]
[BlackElo "2419"]
[Annotator "TA"]
[PlyCount "114"]
[EventDate "2022.05.12"]
[EventType "tourn"]
[EventCountry "MGL"]
[SourceTitle "playchess.com"]
[Source "ChessBase"]
[SourceQuality "1"]
[TimeControl "40/5400+30:1800+30"]

{[%evp 9,114,-24,-9,-15,-9,-14,0,-19,27,37,29,17,30,27,47,52,43,52,69,64,34,42,57,57,43,48,44,40,50,43,30,19,22,0,53,25,35,34,32,37,36,36,71,26,25,29,37,24,33,33,119,136,124,134,143,64,55,63,45,65,73,79,122,31,21,9,8,8,8,-8,0,0,0,-31,-12,-21,-13,-16,-8,-8,-8,-8,-8,-8,-8,-8,-8,-6877,-6452,-29974,-29976,-29975,-29977,-29979,-29979,-29979,-29980,-29978,-29979,-29979,-29980,-29980,-29981,-29981,-29981,-29980,-8]} 1. e4 {[%emt 0:00:02]} c5 {[%emt 0:00:06]} 2. Nf3 {[%emt 0:00:03]} d6 {[%emt 0:00:18]} 3. d4 {[%emt 0:00:05]} Nf6 {[%emt 0:00:15]} 4. e5 {[%emt 0:01:24]} dxe5 {[%emt 0:06:29]} 5. dxe5 {[%emt 0:00:04]} Qxd1+ {[%emt 0:00:25]} 6. Kxd1 {[%emt 0:00:04] B53: Sicilian: 2...d6: Lines with Qxd4.} Ng4 {[%emt 0:03:56]} 7. Ke1 {[%emt 0:00:08]} Nc6 {[%emt 0:00:17]} 8. Bf4 {[%emt 0:00:44] [#] The position is equal.} Bf5 $146 {[%emt 0:07:41]} (8... g5 {deserves consideration.} 9. Bxg5 Bg7) ({Predecessor:} 8... g5 9. Bxg5 Bg7 10. Bb5 Bd7 11. Nc3 Ngxe5 12. Nxe5 Nxe5 13. Bxd7+ Nxd7 14. Rd1 Bxc3+ 15. bxc3 {1-0 (49) Guliev,L (2273)-Ferguson,R (2058) Chess.com INT 2021}) 9. h3 $11 {[%emt 0:03:10]} Nh6 {[%emt 0:00:57]} 10. c3 {[%emt 0:04:00]} O-O-O {[%emt 0:03:15]} 11. Nbd2 {[%emt 0:01:45]} e6 {[%emt 0:07:59]} 12. g4 {[%emt 0:08:55]} Bg6 {[%emt 0:03:50]} 13. Nh4 {[%emt 0:03:13]} Be7 {[%emt 0:25:34]} 14. Nxg6 {[%emt 0:00:21]} hxg6 {[%emt 0:00:06]} 15. Bg2 {[%emt 0:00:42]} g5 {[%emt 0:01:38]} 16. Bg3 {[%emt 0:07:27]} f5 {[%emt 0:00:54]} 17. exf6 $1 {[%emt 0:01:25]} gxf6 {[%emt 0:00:07]} 18. Bxc6 {[%emt 0:24:58]} bxc6 {[%emt 0:00:13]} 19. f3 {[%emt 0:00:26]} f5 {[%emt 0:06:34]} 20. Ke2 {[%emt 0:05:56]} Nf7 {[%emt 0:02:17]} 21. Nc4 {[%emt 0:01:09]} Rh7 {[%emt 0:11:32]} (21... f4 $11 22. Bf2 Rd5) 22. Rh2 {[%emt 0:15:38]} Rdh8 {[%emt 0:08:25]} 23. Rah1 {[%emt 0:00:07]} Bd8 {[%emt 0:01:48]} 24. Kf1 {[%emt 0:03:59]} Bc7 {[%emt 0:00:57]} 25. Kg2 {[%emt 0:00:26]} Rd8 {[%emt 0:04:01]} 26. Re1 {[%emt 0:02:21]} Bxg3 {[%emt 0:01:27]} 27. Kxg3 {[%emt 0:00:04]} f4+ {[%emt 0:00:45]} 28. Kg2 {[%emt 0:00:14]} Rh6 {[%emt 0:00:05]} 29. Rhh1 {[%emt 0:00:55]} Nd6 {[%emt 0:01:43]} (29... e5 $14) 30. Ne5 $16 {[%emt 0:03:14]} Kc7 {[%emt 0:00:23]} 31. Rd1 {[%emt 0:01:02]} Rh7 {[%emt 0:01:03]} 32. Rd2 {[%emt 0:06:22]} (32. c4 $16) 32... Nf5 $1 $14 {[%emt 0:00:39]} 33. Rxd8 {[%emt 0:00:58]} Ne3+ {[%emt 0:00:05]} 34. Kf2 {[%emt 0:00:57]} Kxd8 {[%emt 0:00:06][%mdl 4096] Endgame KRN-KRN} 35. h4 {[%emt 0:01:06]} Kc7 {[%emt 0:01:21]} 36. Nd3 {[%emt 0:03:20]} (36. Ng6 $16) 36... Kd6 $1 {[%emt 0:00:30]} 37. b3 {[%emt 0:01:29] And now h5 would win.} Rxh4 {[%emt 0:00:25]} ({Don't do} 37... c4 38. bxc4 Nxc4 39. h5 $14) 38. Rxh4 {[%emt 0:00:08]} gxh4 {[%emt 0:00:05]} 39. Nxf4 $11 {[%emt 0:00:34] KN-KN} Nd1+ {[%emt 0:00:10]} 40. Kg2 {[%emt 0:00:00] [#] aiming for Ne2.} Nxc3 {[%emt 0:00:00]} 41. g5 {[%emt 0:05:34]} Ke5 {[%emt 0:08:19]} 42. g6 {[%emt 0:17:35] g7 is the strong threat.} Kf6 {[%emt 0:00:09]} (42... Kxf4 $2 43. g7 $18) 43. Kh3 {[%emt 0:03:05]} e5 {[%emt 0:07:48]} ({But not} 43... Nxa2 44. Kxh4 Nc3 45. Kh5 $16) 44. Nd3 {[%emt 0:01:31][%cal Od3e5]} Kxg6 {[%emt 0:02:54] [#] White must now prevent ...Kh5.} 45. Nxe5+ {[%emt 0:01:15]} Kf5 {[%emt 0:00:22]} 46. Nxc6 {[%emt 0:00:25]} Nxa2 {[%emt 0:01:23] Threatening ...a6.} 47. Nxa7 {[%emt 0:00:09]} Nc1 {[%emt 0:00:19]} 48. b4 $2 {[%emt 0:00:16][%mdl 8192] Loses the game.} (48. Kxh4 $11 Nxb3 49. Kg3) 48... cxb4 $19 {[%emt 0:01:01][%cal Bc5b4,Bb4b3,Bb3b2][%mdl 32] ( -> ...b3)} 49. Nc6 {[%emt 0:00:04]} b3 {[%emt 0:00:23] Black mates.} 50. Nd4+ {[%emt 0:00:07]} Kg5 {[%emt 0:00:08]} 51. Nb5 {[%emt 0:05:08]} Ne2 {[%emt 0:03:08]} 52. Na3 {[%emt 0:00:08]} b2 {[%emt 0:00:47]} 53. Nb1 {[%emt 0:00:03]} Nf4+ {[%emt 0:00:13]} 54. Kh2 {[%emt 0:00:04]} Kf5 {[%emt 0:00:17]} 55. Nd2 {[%emt 0:00:05]} Ke6 {[%emt 0:00:18]} 56. Nb1 {[%emt 0:00:11]} Kd5 {[%emt 0:00:25]} 57. Na3 {[%emt 0:00:08]} Ke5 $2 {[%emt 0:12:45][%mdl 32768] Weighted Error Value: White=0.37/Black=0.10 (very precise) . Sensor Board Error (Ke4/e5)?} (57... Kd4 {mates} 58. Kg1 Kc3 59. Kh1 Kb3 60. Nb1 Kc2 61. Na3+ Kc1 62. Kh2 b1=Q 63. Nxb1 Kxb1 64. Kh1 Kc2 65. Kh2 Kd3 66. Kg1 Ke2 67. Kh2 Kf1 68. Kh1 h3 69. Kh2 Kf2 70. Kh1 Kg3 71. Kg1 h2+ 72. Kh1 Nd3 73. f4 Nf2#) 0-1

[Event "Mongolian Championship Open 2022"]
[Site "Chingis Khentii"]
[Date "2022.05.21"]
[Round "9.5"]
[White "Munkhgal, Gombosuren"]
[Black "Amartuvshin, Ganzorig"]
[Result "0-1"]
[ECO "A45"]
[WhiteElo "2502"]
[BlackElo "2350"]
[Annotator "TA"]
[PlyCount "96"]
[EventDate "2022.05.12"]
[EventType "tourn"]
[EventCountry "MGL"]
[SourceTitle "playchess.com"]
[Source "ChessBase"]
[SourceQuality "1"]
[TimeControl "40/5400+30:1800+30"]

{[%evp 9,96,0,5,1,8,0,0,0,-2,-28,-11,-27,0,-6,-14,-33,-36,-35,-37,-115,-105,-156,-167,-158,-161,-139,-138,-143,-143,-200,-200,-286,-265,-270,-258,-267,-268,-284,-256,-267,-261,-305,-199,-297,-306,-622,-280,-565,-493,-599,-596,-560,-538,-5362,-5283,-29974,-29974,-6536,-1094,-1095,-1046,-1045,-1045,-5189,-5065,-1822,-1766,-29947,-29954,-29947,-29956,-29985,-29986,-29990,-29991,-29991,-29992,-29992,-29985,-29985,-29986,-29989,-29990,-29990,-29989,-29989,-29990,-29990,-29991]} 1. d4 {[%emt 0:00:16]} Nf6 {[%emt 0:00:05]} 2. Bf4 {[%emt 0:00:03]} g6 {[%emt 0:00:12]} 3. Nc3 {[%emt 0:00:01]} d5 {[%emt 0:00:08]} 4. e3 {[%emt 0:00:02]} Bg7 {[%emt 0:00:11]} 5. h4 {[%emt 0:00:04]} h5 {[%emt 0:00:16]} 6. Nf3 {[%emt 0:00:03] A45: Trompowsky Attack.} O-O {[%emt 0:00:27][%cal Oc7c5]} 7. Be2 {[%emt 0:03:27]} Bf5 {[%emt 0:02:32]} 8. Ne5 {[%emt 0:00:28] The position is equal.} c5 {[%emt 0:05:41]} 9. Qd2 {[%emt 0:02:23]} (9. f3 $5 {[%cal Rd4c5]}) 9... cxd4 {[%emt 0:02:02]} 10. exd4 {[%emt 0:00:14]} Nc6 {[%emt 0:00:21]} 11. f3 {[%emt 0:02:40]} Rc8 {[%emt 0:02:09]} 12. a3 {[%emt 0:05:44] Against Nb4} Qb6 {[%emt 0:06:36]} 13. O-O-O {[%emt 0:02:03] [#]} Rfd8 $146 {[%emt 0:02:00]} ({Predecessor:} 13... Na5 14. g4 hxg4 15. fxg4 Ne4 16. Nxd5 Nb3+ 17. Kb1 Nexd2+ 18. Bxd2 Bxc2+ {0-1 (18) Wood,T-Bodnaruk,A (2457) St Petersburg 2021}) 14. g4 {[%emt 0:02:59] White is on the road to losing.} (14. Be3 $15) 14... hxg4 $17 {[%emt 0:00:29]} 15. fxg4 {[%emt 0:00:55]} (15. h5 $142) 15... Ne4 {[%emt 0:00:53]} 16. Qe3 {[%emt 0:22:54] Threatens to win with Nxc6.} Nxc3 {[%emt 0:01:14]} 17. bxc3 {[%emt 0:00:10]} Be4 {[%emt 0:00:10]} 18. Rh3 {[%emt 0:03:47]} Qa5 {[%emt 0:11:46]} 19. h5 {[%emt 0:10:18]} (19. c4 $17 {was called for.}) 19... g5 $19 {[%emt 0:07:37]} 20. Bxg5 {[%emt 0:10:44]} (20. Bh2 $142) 20... Qxa3+ {[%emt 0:00:08]} 21. Kd2 {[%emt 0:00:03]} Nxe5 $40 {[%emt 0:00:11][%mdl 128] Black has strong attack.} 22. h6 {[%emt 0:02:15] [#]} Nd3 $1 {[%emt 0:01:23][%mdl 512]} 23. Bxd3 {[%emt 0:00:29]} Qxc3+ {[%emt 0:02:46]} 24. Ke2 {[%emt 0:00:21]} Bxd4 {[%emt 0:01:27] Chess con chili.} 25. Qf4 {[%emt 0:04:49]} Be5 {[%emt 0:01:49]} 26. h7+ {[%emt 0:03:23]} (26. Bxe4 {might work better.} Qc4+ 27. Bd3 Qxf4 28. Bxf4 Bxf4 29. Rh5) 26... Kh8 {[%emt 0:00:37]} 27. Qxf7 {[%emt 0:01:37]} (27. Qf2) 27... Bxd3+ {[%emt 0:00:18]} (27... Bg7 $142 28. Qf2 Rf8) 28. Rhxd3 $2 {[%emt 0:00:48]} (28. cxd3 Qd4 29. Rf3) 28... Qxc2+ {[%emt 0:00:13]} 29. R1d2 {[%emt 0:00:07]} Qc4 {[%emt 0:00:40]} 30. Bxe7 {[%emt 0:05:54] Strongly threatening Bf6+.} Re8 {[%emt 0:13:44][%cal Oe8e7] ...Rxe7! is the strong threat.} 31. Kf2 {[%emt 0:05:08] [#] Intending Bf6+ and mate.} Rxe7 {[%emt 0:01:50][%mdl 512]} 32. Qxe7 {[%emt 0:00:16]} (32. Qf3 Re6) 32... Qf4+ {[%emt 0:00:05]} 33. Kg2 {[%emt 0:08:25]} Rf8 {[%emt 0:02:17]} (33... Qxg4+ $142 34. Kf2 Qf4+ 35. Kg2 Qh2+ 36. Kf1 Rc1+ 37. Rd1 Qf4+ 38. Ke1 Qe4+ 39. Kf2 Rc2+ 40. R1d2 Bd4+ 41. Kg3 Qxe7 42. Rxc2 Qe5+ 43. Kg4 Qe4+ 44. Kg5 Qxd3 45. Rc8+ Kxh7 46. Rc7+ Bg7 47. Rxb7 d4 48. Rb2 Qg3+ 49. Kf5 d3 50. Rd2 Qf3+ 51. Ke6 Qe3+ 52. Kf5 Qxd2 53. Ke4 Qe2+ 54. Kd5 d2 55. Kd6 d1=Q+ 56. Kc7 Qe7+ 57. Kc8 Qdd8#) 34. Qxf8+ {[%emt 0:02:15]} Qxf8 {[%emt 0:00:06]} 35. Rxd5 {[%emt 0:00:04]} Qf4 {[%emt 0:00:18] ( -> ...Qg3+)} 36. Rd7 {[%emt 0:00:32]} Qg3+ {[%emt 0:01:20]} 37. Kf1 {[%emt 0:01:30]} Qf3+ {[%emt 0:00:07]} 38. Kg1 {[%emt 0:00:03]} Bf4 {[%emt 0:00:29] Black mates.} 39. R2d3 {[%emt 0:02:14]} Qe2 {[%emt 0:03:07]} 40. g5 {[%emt 0:00:00]} Be3+ {[%emt 0:00:00]} 41. Kh1 {[%emt 0:01:37]} Qf1+ {[%emt 0:00:22]} 42. Kh2 {[%emt 0:00:13]} Bf4+ {[%emt 0:00:07]} 43. Rg3 {[%emt 0:00:05]} Qe2+ {[%emt 0:00:06]} 44. Kh3 {[%emt 0:00:08]} Qe6+ {[%emt 0:00:05]} 45. Rg4 {[%emt 0:00:04]} Qxd7 {[%emt 0:00:05]} 46. g6 {[%emt 0:00:03]} Be5 {[%emt 0:00:16]} 47. Kh4 {[%emt 0:00:05]} Qf5 {[%emt 0:00:15]} 48. g7+ {[%emt 0:00:12]} Bxg7 {[%emt 0:00:06] Weighted Error Value: White=1.09/Black=0.27 (precise)} 0-1

[Event "Mongolian Championship Open 2022"]
[Site "Chingis Khentii"]
[Date "2022.05.21"]
[Round "9.6"]
[White "Enkhnar, Enkhbaatar"]
[Black "Batchuluun, Tsegmed"]
[Result "0-1"]
[ECO "A28"]
[WhiteElo "2368"]
[BlackElo "2536"]
[Annotator "TA"]
[PlyCount "73"]
[EventDate "2022.05.12"]
[EventType "tourn"]
[EventCountry "MGL"]
[SourceTitle "playchess.com"]
[Source "ChessBase"]
[SourceQuality "1"]
[TimeControl "40/5400+30:1800+30"]

{[%evp 10,73,32,33,31,29,39,0,0,0,7,-37,0,0,0,0,0,-105,-77,-176,-91,-85,-97,-114,-113,-116,-110,-117,-117,-120,-72,-73,-61,-92,-85,-102,-50,-75,-10,-50,-50,-50,-39,-76,-37,-115,-77,-153,-111,-234,-227,-242,-237,-233,-192,-191,-187,-512,-484,-498,-468,-664,-646,-1051,-714,-29986]} 1. c4 {[%emt 0:00:11]} e5 {[%emt 0:00:50]} 2. Nc3 {[%emt 0:01:58]} Nf6 {[%emt 0:00:07]} 3. e3 {[%emt 0:00:09]} Nc6 {[%emt 0:02:11]} 4. a3 {[%emt 0:00:32]} a5 {[%emt 0:01:02]} 5. Nf3 {[%emt 0:00:32]} Be7 {[%emt 0:01:06]} 6. d4 {[%emt 0:02:38]} exd4 {[%emt 0:00:16] A28: English Opening: Four Knights Variation.} 7. exd4 {[%emt 0:00:06]} d5 {[%emt 0:00:13][%cal Bd7d5,Bd5d4,Bd4c3][%mdl 32] [#]} 8. Ne5 $146 {[%emt 0:00:15]} ({Predecessor:} 8. h3 O-O 9. Bd3 h6 10. O-O Be6 11. cxd5 Nxd5 12. Bc2 Nf6 13. Qd3 Re8 14. Rd1 {1-0 (44) Sevian,S (2647)-Bok,B (2624) Krasnaya Polyana 2021}) 8... O-O {[%emt 0:04:48] The position is equal.} 9. Nxc6 {[%emt 0:01:14]} bxc6 {[%emt 0:00:07]} 10. c5 {[%emt 0:00:26]} Re8 {[%emt 0:01:18]} (10... Bxc5 $5 11. dxc5 d4 $15) 11. Be2 {[%emt 0:00:23]} Bxc5 {[%emt 0:16:51]} 12. dxc5 {[%emt 0:00:07]} d4 {[%emt 0:00:04]} 13. Bg5 {[%emt 0:10:43]} h6 {[%emt 0:05:47]} 14. Bf4 {[%emt 0:05:11] [#]} Ba6 {[%emt 0:24:45]} (14... Bf5 $1 $19 15. O-O dxc3 16. bxc3 Qxd1 17. Bxd1 Bd3 18. Bxc7 Bxf1 19. Kxf1 Ne4) 15. O-O $17 {[%emt 0:00:27]} dxc3 {[%emt 0:00:02]} 16. Qxd8 {[%emt 0:01:28]} Rexd8 {[%emt 0:00:43]} 17. Bxa6 {[%emt 0:00:09]} cxb2 {[%emt 0:00:16]} 18. Rab1 {[%emt 0:01:15] [#] Threatens to win with Bb7.} Rxa6 {[%emt 0:04:32]} 19. Rxb2 {[%emt 0:01:45]} Nd5 {[%emt 0:00:44]} (19... Rd3 $142 20. Bxc7 Rxa3 21. Rb8+ Kh7) 20. Bd2 {[%emt 0:00:18]} a4 {[%emt 0:01:00]} 21. f3 {[%emt 0:01:00]} Raa8 {[%emt 0:00:13]} 22. Kf2 {[%emt 0:00:23]} h5 {[%emt 0:06:18]} (22... Ne7 $17 23. Re1 Ng6) 23. Rc1 {[%emt 0:00:15]} Rdb8 {[%emt 0:00:28]} (23... Ne7 $17) 24. Rcb1 {[%emt 0:00:21]} Rxb2 {[%emt 0:00:14]} 25. Rxb2 $15 {[%emt 0:00:06][%mdl 4096] Endgame KRB-KRN} f6 {[%emt 0:01:00][%cal Bf7f6,Bf6g5][%mdl 32]} 26. Ke2 {[%emt 0:00:27]} Kf7 {[%emt 0:00:04]} 27. Kd3 {[%emt 0:00:11]} ({Better is} 27. Rc2 $15) 27... Ke6 {[%emt 0:01:31]} 28. Be1 {[%emt 0:01:26]} (28. Rb1 $142) 28... g5 {[%emt 0:03:25]} 29. h4 {[%emt 0:01:29] White does not recover from this.} (29. Bd2 $17) 29... Kf5 $19 {[%emt 0:01:45]} 30. hxg5 {[%emt 0:00:29]} fxg5 {[%emt 0:00:16] ...Re8 is the strong threat.} 31. g3 {[%emt 0:01:45]} Re8 {[%emt 0:05:49]} 32. Re2 {[%emt 0:02:29]} Rb8 {[%emt 0:00:08] Strongly threatening ...Rb3+.} 33. g4+ $2 {[%emt 0:00:57]} (33. Bd2) 33... hxg4 {[%emt 0:00:20] Black is clearly winning.} 34. fxg4+ {[%emt 0:00:03]} Kxg4 {[%emt 0:00:13] And now ...Nf4+ would win.} 35. Re4+ {[%emt 0:00:19]} (35. Kd4 $142 Rd8 36. Re5) 35... Kf3 {[%emt 0:04:03] White must now prevent ...Nf4+.} 36. Rxa4 {[%emt 0:00:03]} Re8 {[%emt 0:00:17]} 37. Kd4 {[%emt 1:07:30] Weighted Error Value: White=0.64/Black=0.20 (precise)} 0-1